[Event "European Online Club-ch-G 2021"]
[Site "Online"]
[Date "2021.03.27"]
[Round "2.3"]
[White "Yildirim, Ibrahim Halil"]
[Black "Juhasz, Agoston"]
[Result "1-0"]
[ECO "B15"]
[WhiteElo "1783"]
[BlackElo "2356"]
[Annotator "NA"]
[PlyCount "57"]
[EventDate "2021.03.27"]
[EventType "team-tourn"]
[EventCountry "NET"]
[SourceTitle "playchess.com"]
[Source "ChessBase"]
[SourceQuality "1"]
[TimeControl "900+5"]

1. e4 {[%emt 0:00:00]} c6 {[%emt 0:00:03]} 2. d4 {[%emt 0:00:03]} d5 {[%emt 0:00:02]} 3. Nd2 {[%emt 0:00:02]} dxe4 {[%emt 0:00:15]} 4. Nxe4 {[%emt 0:00:01]} Nf6 {[%emt 0:00:01]} 5. Nxf6+ {[%emt 0:00:01]} exf6 {[%emt 0:00:02]} 6. c3 {[%emt 0:00:02]} Bd6 {[%emt 0:00:04]} 7. Bd3 {[%emt 0:00:01]} O-O {[%emt 0:00:06]} 8. Qc2 {[%emt 0:00:01]} Re8+ {[%emt 0:00:02]} 9. Ne2 {[%emt 0:00:02]} h5 {[%emt 0:00:01]} 10. Be3 {[%emt 0:00:24]} Nd7 {[%emt 0:00:13]} 11. O-O {[%emt 0:00:25]} h4 {[%emt 0:00:40]} 12. h3 {[%emt 0:00:03]} Nf8 {[%emt 0:00:08]} 13. Rfe1 {[%emt 0:00:23]} Bc7 {[%emt 0:01:29]} 14. c4 {[%emt 0:00:05]} Bd7 {[%emt 0:03:09]} 15. Rad1 {[%emt 0:03:10]} Rc8 {[%emt 0:00:07]} 16. Nf4 {[%emt 0:01:42]} Bb8 {[%emt 0:01:05]} 17. d5 {[%emt 0:06:19]} Bxf4 {[%emt 0:02:25]} 18. dxc6 {[%emt 0:00:41]} Qa5 {[%emt 0:03:04]} 19. cxd7 {[%emt 0:01:23]} Nxd7 {[%emt 0:00:05]} 20. Bh7+ {[%emt 0:00:49]} Kh8 {[%emt 0:00:28]} 21. Qf5 {[%emt 0:00:23]} Ne5 {[%emt 0:02:21]} 22. Qh5 {[%emt 0:00:36]} Bxe3 {[%emt 0:00:37]} 23. Rxe3 {[%emt 0:00:07]} Nf3+ {[%emt 0:00:13]} 24. Qxf3 {[%emt 0:00:02]} Rxe3 {[%emt 0:00:06]} 25. Qxe3 {[%emt 0:00:06]} Kxh7 {[%emt 0:00:03]} 26. Qe4+ {[%emt 0:00:07]} Kg8 {[%emt 0:00:11]} 27. Qxh4 {[%emt 0:00:05]} Qxa2 {[%emt 0:00:06]} 28. c5 {[%emt 0:00:10]} Qxb2 {[%emt 0:00:07]} 29. Qg4 {[%emt 0:00:01]} 1-0

[Event "European Online Club-ch-G 2021"]
[Site "Online"]
[Date "2021.03.27"]
[Round "2.4"]
[White "Ongut, Tamas Gunes"]
[Black "Ozata, Doruk"]
[Result "1-0"]
[ECO "E27"]
[WhiteElo "2314"]
[BlackElo "1646"]
[Annotator "NA"]
[PlyCount "61"]
[EventDate "2021.03.27"]
[EventType "team-tourn"]
[EventCountry "NET"]
[SourceTitle "playchess.com"]
[Source "ChessBase"]
[SourceQuality "1"]
[TimeControl "900+5"]

1. d4 {[%emt 0:00:00]} Nf6 {[%emt 0:00:05]} 2. c4 {[%emt 0:00:03]} e6 {[%emt 0:00:01]} 3. Nc3 {[%emt 0:00:02]} Bb4 {[%emt 0:00:03]} 4. f3 {[%emt 0:00:02]} d5 {[%emt 0:00:05]} 5. a3 {[%emt 0:00:03]} Bxc3+ {[%emt 0:00:01]} 6. bxc3 {[%emt 0:00:02]} O-O {[%emt 0:00:01]} 7. cxd5 {[%emt 0:00:02]} exd5 {[%emt 0:00:03]} 8. e3 {[%emt 0:00:01]} Bf5 {[%emt 0:00:08]} 9. Ne2 {[%emt 0:01:12]} Nbd7 {[%emt 0:00:57]} 10. g4 {[%emt 0:00:06]} Bg6 {[%emt 0:00:07]} 11. h4 {[%emt 0:00:03]} h5 {[%emt 0:00:07]} 12. g5 {[%emt 0:00:06]} Ne8 {[%emt 0:00:04]} 13. Nf4 {[%emt 0:00:05]} c6 {[%emt 0:00:07]} 14. Nxg6 {[%emt 0:01:45]} fxg6 {[%emt 0:00:03]} 15. Bd3 {[%emt 0:00:12]} Qc7 {[%emt 0:00:21]} 16. f4 {[%emt 0:00:08]} Qd6 {[%emt 0:00:29]} 17. a4 {[%emt 0:00:34]} c5 {[%emt 0:00:24]} 18. Ba3 {[%emt 0:00:35]} b6 {[%emt 0:00:07]} 19. Qc2 {[%emt 0:00:12]} Qe6 {[%emt 0:00:22]} 20. O-O-O {[%emt 0:01:34]} Qxe3+ {[%emt 0:00:20]} 21. Kb1 {[%emt 0:00:03]} Nd6 {[%emt 0:00:26]} 22. Rde1 {[%emt 0:01:04]} Qxf4 {[%emt 0:02:03]} 23. Bxg6 {[%emt 0:00:05]} Ne4 {[%emt 0:03:13]} 24. Bxe4 {[%emt 0:01:12]} dxe4 {[%emt 0:00:37]} 25. Rxe4 {[%emt 0:00:48]} Qf3 {[%emt 0:00:30]} 26. Rhe1 {[%emt 0:00:05]} Rac8 {[%emt 0:00:56]} 27. Re7 {[%emt 0:01:18]} Rf7 {[%emt 0:01:28]} 28. Qb3 {[%emt 0:00:33]} cxd4 {[%emt 0:00:23]} 29. Rxf7 {[%emt 0:00:33]} Qd3+ {[%emt 0:01:11]} 30. Ka1 {[%emt 0:00:05]} Rxc3 {[%emt 0:00:46]} 31. Rf8+ {[%emt 0:00:05]} 1-0

[Event "European Online Club-ch-G 2021"]
[Site "Online"]
[Date "2021.03.27"]
[Round "2.5"]
[White "Sevdimaliyev, Urfan"]
[Black "Harvey, Marcus R"]
[Result "0-1"]
[ECO "C03"]
[WhiteElo "2369"]
[BlackElo "2440"]
[Annotator "NA"]
[PlyCount "88"]
[EventDate "2021.03.27"]
[EventType "team-tourn"]
[EventCountry "NET"]
[SourceTitle "playchess.com"]
[Source "ChessBase"]
[SourceQuality "1"]
[TimeControl "900+5"]

1. e4 {[%emt 0:00:00]} e6 {[%emt 0:00:03]} 2. d4 {[%emt 0:00:04]} d5 {[%emt 0:00:02]} 3. Nd2 {[%emt 0:00:03]} h6 {[%emt 0:00:07]} 4. g3 {[%emt 0:00:10]} dxe4 {[%emt 0:00:06]} 5. Nxe4 {[%emt 0:00:03]} Bd7 {[%emt 0:00:14]} 6. Bg2 {[%emt 0:00:08]} Bc6 {[%emt 0:00:01]} 7. Bf3 {[%emt 0:01:07]} Be7 {[%emt 0:00:45]} 8. Ne2 {[%emt 0:00:41]} Nf6 {[%emt 0:00:18]} 9. N2c3 {[%emt 0:00:14]} Nxe4 {[%emt 0:00:13]} 10. Nxe4 {[%emt 0:00:31]} Nd7 {[%emt 0:00:49]} 11. O-O {[%emt 0:00:33]} Bd5 {[%emt 0:01:02]} 12. Qe2 {[%emt 0:00:21]} Nf6 {[%emt 0:00:14]} 13. c4 {[%emt 0:00:41]} Bxe4 {[%emt 0:00:04]} 14. Bxe4 {[%emt 0:00:02]} Nxe4 {[%emt 0:00:01]} 15. Qxe4 {[%emt 0:00:21]} c6 {[%emt 0:00:02]} 16. Rd1 {[%emt 0:00:58]} O-O {[%emt 0:00:22]} 17. Be3 {[%emt 0:00:10]} Bf6 {[%emt 0:00:05]} 18. Rd2 {[%emt 0:00:12]} Qa5 {[%emt 0:00:16]} 19. b3 {[%emt 0:00:41]} Rad8 {[%emt 0:01:17]} 20. Rad1 {[%emt 0:00:12]} Rd7 {[%emt 0:00:30]} 21. a4 {[%emt 0:01:24]} Rfd8 {[%emt 0:00:12]} 22. Rd3 {[%emt 0:00:14]} a6 {[%emt 0:00:59]} 23. h4 {[%emt 0:00:43]} Qh5 {[%emt 0:00:58]} 24. Kg2 {[%emt 0:00:31]} Be7 {[%emt 0:01:36]} 25. Qf3 {[%emt 0:01:47]} Qxf3+ {[%emt 0:00:14]} 26. Kxf3 {[%emt 0:00:03]} f5 {[%emt 0:01:07]} 27. h5 {[%emt 0:00:26]} Kf7 {[%emt 0:00:23]} 28. g4 {[%emt 0:00:15]} fxg4+ {[%emt 0:00:44]} 29. Kxg4 {[%emt 0:00:03]} Bf6 {[%emt 0:00:21]} 30. Kf3 {[%emt 0:00:23]} b5 {[%emt 0:00:30]} 31. axb5 {[%emt 0:00:08]} axb5 {[%emt 0:00:02]} 32. Ke4 {[%emt 0:00:07]} Rb8 {[%emt 0:00:34]} 33. d5 {[%emt 0:00:35]} exd5+ {[%emt 0:00:04]} 34. cxd5 {[%emt 0:00:03]} Re8+ {[%emt 0:00:02]} 35. Kf3 {[%emt 0:00:05]} cxd5 {[%emt 0:00:52]} 36. Rxd5 {[%emt 0:00:03]} Rxd5 {[%emt 0:00:01]} 37. Rxd5 {[%emt 0:00:05]} Re5 {[%emt 0:00:02]} 38. Rxe5 {[%emt 0:00:31]} Bxe5 {[%emt 0:00:00]} 39. Ke4 {[%emt 0:00:02]} Ke6 {[%emt 0:00:22]} 40. Bd4 {[%emt 0:01:36]} Bxd4 {[%emt 0:00:04]} 41. Kxd4 {[%emt 0:00:04]} Kf6 {[%emt 0:00:39]} 42. Kc5 {[%emt 0:00:23]} g6 {[%emt 0:00:02]} 43. hxg6 {[%emt 0:00:18]} Kxg6 {[%emt 0:00:16]} 44. Kd5 {[%emt 0:00:17]} Kf5 {[%emt 0:00:04]} 0-1

[Event "European Online Club-ch-G 2021"]
[Site "Online"]
[Date "2021.03.27"]
[Round "2.6"]
[White "Greet, Andrew N"]
[Black "Babayev, Talib"]
[Result "1-0"]
[ECO "B12"]
[WhiteElo "2417"]
[BlackElo "2282"]
[Annotator "NA"]
[PlyCount "59"]
[EventDate "2021.03.27"]
[EventType "team-tourn"]
[EventCountry "NET"]
[SourceTitle "playchess.com"]
[Source "ChessBase"]
[SourceQuality "1"]
[TimeControl "900+5"]

1. e4 {[%emt 0:00:00]} c6 {[%emt 0:00:04]} 2. d4 {[%emt 0:00:09]} d5 {[%emt 0:00:01]} 3. e5 {[%emt 0:00:28]} Bf5 {[%emt 0:00:04]} 4. h4 {[%emt 0:00:01]} h5 {[%emt 0:00:04]} 5. Bd3 {[%emt 0:00:02]} Bxd3 {[%emt 0:00:04]} 6. Qxd3 {[%emt 0:00:02]} e6 {[%emt 0:00:02]} 7. Bg5 {[%emt 0:00:02]} Qb6 {[%emt 0:00:05]} 8. Nd2 {[%emt 0:00:03]} c5 {[%emt 0:00:12]} 9. c4 {[%emt 0:00:08]} Qa6 {[%emt 0:00:36]} 10. Ngf3 {[%emt 0:01:16]} Nc6 {[%emt 0:00:06]} 11. O-O {[%emt 0:00:32]} Be7 {[%emt 0:00:58]} 12. dxc5 {[%emt 0:00:32]} Bxg5 {[%emt 0:00:05]} 13. hxg5 {[%emt 0:00:05]} Nge7 {[%emt 0:00:15]} 14. Qc3 {[%emt 0:00:46]} O-O-O {[%emt 0:00:37]} 15. b4 {[%emt 0:00:10]} dxc4 {[%emt 0:00:03]} 16. Nxc4 {[%emt 0:00:26]} Nd5 {[%emt 0:00:04]} 17. Qb3 {[%emt 0:00:10]} Ndxb4 {[%emt 0:00:54]} 18. Nd6+ {[%emt 0:00:12]} Kc7 {[%emt 0:00:04]} 19. Nxf7 {[%emt 0:00:56]} Rd3 {[%emt 0:00:04]} 20. Qxe6 {[%emt 0:00:10]} Rf8 {[%emt 0:00:10]} 21. Rfd1 {[%emt 0:01:06]} Qa3 {[%emt 0:00:44]} 22. g6 {[%emt 0:01:22]} Na6 {[%emt 0:00:34]} 23. Rxd3 {[%emt 0:00:21]} Qxd3 {[%emt 0:00:04]} 24. Qd6+ {[%emt 0:00:07]} Qxd6 {[%emt 0:00:03]} 25. cxd6+ {[%emt 0:00:04]} Kd7 {[%emt 0:00:02]} 26. N3g5 {[%emt 0:03:26]} Nc5 {[%emt 0:00:05]} 27. f4 {[%emt 0:00:12]} Ne6 {[%emt 0:00:14]} 28. Nxe6 {[%emt 0:00:27]} Kxe6 {[%emt 0:00:03]} 29. Rd1 {[%emt 0:00:42]} Kd7 {[%emt 0:01:36]} 30. f5 {[%emt 0:00:08]} 1-0

[Event "European Online Club-ch-G 2021"]
[Site "Online"]
[Date "2021.03.27"]
[Round "2.7"]
[White "Gasimov, Parviz"]
[Black "Houska, Jovanka"]
[Result "0-1"]
[ECO "B12"]
[WhiteElo "2337"]
[BlackElo "2381"]
[Annotator "NA"]
[PlyCount "78"]
[EventDate "2021.03.27"]
[EventType "team-tourn"]
[EventCountry "NET"]
[SourceTitle "playchess.com"]
[Source "ChessBase"]
[SourceQuality "1"]
[TimeControl "900+5"]

1. e4 {[%emt 0:00:00]} c6 {[%emt 0:00:03]} 2. d4 {[%emt 0:00:03]} d5 {[%emt 0:00:02]} 3. e5 {[%emt 0:00:02]} Bf5 {[%emt 0:00:01]} 4. Nf3 {[%emt 0:00:02]} e6 {[%emt 0:00:01]} 5. Be2 {[%emt 0:00:01]} c5 {[%emt 0:00:01]} 6. Be3 {[%emt 0:00:06]} Qb6 {[%emt 0:00:03]} 7. Nc3 {[%emt 0:00:04]} Nc6 {[%emt 0:00:04]} 8. O-O {[%emt 0:00:14]} Qxb2 {[%emt 0:00:05]} 9. Qe1 {[%emt 0:00:04]} cxd4 {[%emt 0:00:03]} 10. Nxd4 {[%emt 0:00:47]} Bb4 {[%emt 0:00:07]} 11. Ndb5 {[%emt 0:00:12]} Ba5 {[%emt 0:01:53]} 12. Rb1 {[%emt 0:01:20]} Qxc2 {[%emt 0:00:06]} 13. Rb3 {[%emt 0:00:16]} Nge7 {[%emt 0:04:10]} 14. Bd1 {[%emt 0:02:35]} Qd3 {[%emt 0:00:17]} 15. Nd6+ {[%emt 0:00:35]} Kf8 {[%emt 0:00:04]} 16. Be2 {[%emt 0:00:37]} Qc2 {[%emt 0:00:55]} 17. Bd1 {[%emt 0:00:07]} Bxc3 {[%emt 0:01:42]} 18. Rxc3 {[%emt 0:00:12]} Qxa2 {[%emt 0:00:01]} 19. Bc5 {[%emt 0:00:43]} b6 {[%emt 0:01:30]} 20. Ba3 {[%emt 0:00:09]} d4 {[%emt 0:00:15]} 21. Rg3 {[%emt 0:01:02]} d3 {[%emt 0:00:39]} 22. Qc3 {[%emt 0:00:24]} Bg6 {[%emt 0:00:17]} 23. Ba4 {[%emt 0:03:00]} Nd4 {[%emt 0:01:04]} 24. Qxd4 {[%emt 0:03:12]} Qxa3 {[%emt 0:00:05]} 25. Rf3 {[%emt 0:00:21]} Qc5 {[%emt 0:00:20]} 26. Qf4 {[%emt 0:00:13]} Nd5 {[%emt 0:00:16]} 27. Qg4 {[%emt 0:00:16]} Kg8 {[%emt 0:00:19]} 28. Bd7 {[%emt 0:00:25]} Nc7 {[%emt 0:01:45]} 29. Qf4 {[%emt 0:00:04]} Rf8 {[%emt 0:00:11]} 30. Rc1 {[%emt 0:00:04]} Nd5 {[%emt 0:00:02]} 31. Qd2 {[%emt 0:00:16]} Qb4 {[%emt 0:00:10]} 32. Qg5 {[%emt 0:00:07]} h6 {[%emt 0:00:13]} 33. Qg3 {[%emt 0:00:05]} Kh7 {[%emt 0:00:03]} 34. h4 {[%emt 0:00:06]} Nc3 {[%emt 0:00:01]} 35. Kh1 {[%emt 0:00:05]} Ne2 {[%emt 0:00:02]} 36. Qh3 {[%emt 0:00:04]} Nxc1 {[%emt 0:00:02]} 37. h5 {[%emt 0:00:07]} Qe1+ {[%emt 0:00:05]} 38. Kh2 {[%emt 0:00:04]} Ne2 {[%emt 0:00:02]} 39. Qg4 {[%emt 0:00:05]} Qg1+ {[%emt 0:00:03]} 0-1

[Event "European Online Club-ch-G 2021"]
[Site "Online"]
[Date "2021.03.27"]
[Round "2.8"]
[White "Derakhshani, Borna"]
[Black "Hasanzade, Toghrul"]
[Result "1-0"]
[ECO "D13"]
[WhiteElo "2373"]
[BlackElo "2322"]
[Annotator "NA"]
[PlyCount "77"]
[EventDate "2021.03.27"]
[EventType "team-tourn"]
[EventCountry "NET"]
[SourceTitle "playchess.com"]
[Source "ChessBase"]
[SourceQuality "1"]
[TimeControl "900+5"]

1. d4 {[%emt 0:00:00]} Nf6 {[%emt 0:00:14]} 2. Bf4 {[%emt 0:00:03]} d5 {[%emt 0:00:03]} 3. Nf3 {[%emt 0:00:02]} c5 {[%emt 0:00:17]} 4. c3 {[%emt 0:00:10]} cxd4 {[%emt 0:00:30]} 5. cxd4 {[%emt 0:00:04]} Nc6 {[%emt 0:00:06]} 6. Nc3 {[%emt 0:00:06]} a6 {[%emt 0:00:06]} 7. e3 {[%emt 0:00:02]} Bg4 {[%emt 0:00:04]} 8. h3 {[%emt 0:00:04]} Bh5 {[%emt 0:00:04]} 9. Qb3 {[%emt 0:00:31]} Bxf3 {[%emt 0:00:52]} 10. gxf3 {[%emt 0:00:21]} e6 {[%emt 0:00:36]} 11. Qxb7 {[%emt 0:00:32]} Na5 {[%emt 0:00:07]} 12. Qc7 {[%emt 0:00:02]} Bb4 {[%emt 0:00:29]} 13. Qxd8+ {[%emt 0:00:13]} Rxd8 {[%emt 0:00:06]} 14. Bxa6 {[%emt 0:00:10]} Ke7 {[%emt 0:00:11]} 15. Rg1 {[%emt 0:00:09]} g6 {[%emt 0:00:15]} 16. a3 {[%emt 0:00:22]} Bxc3+ {[%emt 0:00:17]} 17. bxc3 {[%emt 0:00:01]} Ra8 {[%emt 0:00:02]} 18. Bb5 {[%emt 0:00:39]} Rhc8 {[%emt 0:00:12]} 19. a4 {[%emt 0:00:39]} Rxc3 {[%emt 0:00:10]} 20. Bg5 {[%emt 0:00:11]} Rac8 {[%emt 0:00:27]} 21. Kf1 {[%emt 0:00:10]} Rc2 {[%emt 0:01:01]} 22. Kg2 {[%emt 0:00:10]} R8c3 {[%emt 0:01:02]} 23. Rge1 {[%emt 0:00:37]} Nb3 {[%emt 0:00:32]} 24. Rad1 {[%emt 0:00:16]} Ra2 {[%emt 0:02:16]} 25. Re2 {[%emt 0:00:25]} Ra3 {[%emt 0:01:09]} 26. e4 {[%emt 0:01:01]} h6 {[%emt 0:00:37]} 27. Bxh6 {[%emt 0:00:05]} dxe4 {[%emt 0:00:22]} 28. fxe4 {[%emt 0:00:03]} Nh5 {[%emt 0:01:26]} 29. d5 {[%emt 0:00:53]} Nc5 {[%emt 0:00:20]} 30. d6+ {[%emt 0:00:02]} Kd8 {[%emt 0:00:40]} 31. e5 {[%emt 0:00:49]} Nd7 {[%emt 0:01:32]} 32. Bg5+ {[%emt 0:00:47]} Ke8 {[%emt 0:00:23]} 33. Rb2 {[%emt 0:00:16]} f6 {[%emt 0:00:48]} 34. Bxd7+ {[%emt 0:00:18]} Kxd7 {[%emt 0:00:03]} 35. Rb7+ {[%emt 0:00:01]} Kc8 {[%emt 0:00:08]} 36. d7+ {[%emt 0:00:04]} Kxb7 {[%emt 0:00:02]} 37. d8=Q {[%emt 0:00:02]} fxg5 {[%emt 0:00:05]} 38. Rd7+ {[%emt 0:00:08]} Ka6 {[%emt 0:00:12]} 39. Rd6+ {[%emt 0:00:02]} 1-0

[Event "European Online Club-ch-G 2021"]
[Site "Online"]
[Date "2021.03.27"]
[Round "2.9"]
[White "Mica, Marek"]
[Black "Gazik, Viktor"]
[Result "1/2-1/2"]
[ECO "A48"]
[WhiteElo "2274"]
[BlackElo "2542"]
[Annotator "ChessBase"]
[PlyCount "221"]
[EventDate "2021.03.27"]
[EventType "team-tourn"]
[EventCountry "NET"]
[SourceTitle "playchess.com"]
[Source "ChessBase"]
[SourceQuality "1"]
[TimeControl "900+5"]

1. d4 {[%emt 0:00:00]} Nf6 {[%emt 0:00:04]} 2. Nf3 {[%emt 0:00:03]} g6 {[%emt 0:00:04]} 3. Bf4 {[%emt 0:00:08]} Bg7 {[%emt 0:00:03]} 4. e3 {[%emt 0:00:02]} O-O {[%emt 0:00:01]} 5. h3 {[%emt 0:00:04]} d6 {[%emt 0:00:03]} 6. Be2 {[%emt 0:00:07]} c5 {[%emt 0:00:07]} 7. c3 {[%emt 0:00:25]} Be6 {[%emt 0:00:43]} 8. Nbd2 {[%emt 0:01:10]} Nc6 {[%emt 0:00:09]} 9. O-O {[%emt 0:00:17]} Qb6 {[%emt 0:00:07]} 10. dxc5 {[%emt 0:01:52]} Qxc5 {[%emt 0:00:21]} 11. Nb3 {[%emt 0:00:09]} Qb6 {[%emt 0:00:03]} 12. Nfd2 {[%emt 0:00:52]} Rfd8 {[%emt 0:01:27]} 13. a4 {[%emt 0:01:10]} h6 {[%emt 0:01:12]} 14. a5 {[%emt 0:02:45]} Qc7 {[%emt 0:00:03]} 15. Bh2 {[%emt 0:01:39]} Bd7 {[%emt 0:01:00]} 16. Nc4 {[%emt 0:01:20]} Be6 {[%emt 0:02:43]} 17. Ncd2 {[%emt 0:00:05]} Qc8 {[%emt 0:02:01]} 18. Nd4 {[%emt 0:00:33]} Bd7 {[%emt 0:00:04]} 19. Bf3 {[%emt 0:00:17]} e5 {[%emt 0:00:13]} 20. Nxc6 {[%emt 0:00:55]} bxc6 {[%emt 0:00:14]} 21. Nc4 {[%emt 0:00:14]} Be6 {[%emt 0:03:16]} 22. Qa4 {[%emt 0:00:39]} Bd5 {[%emt 0:00:53]} 23. Nd2 {[%emt 0:00:35]} Rb8 {[%emt 0:00:08]} 24. Rab1 {[%emt 0:01:04]} Qc7 {[%emt 0:00:14]} 25. Rfc1 {[%emt 0:00:13]} Rb7 {[%emt 0:00:44]} 26. c4 {[%emt 0:00:18]} Bxf3 {[%emt 0:00:07]} 27. Nxf3 {[%emt 0:00:02]} c5 {[%emt 0:00:19]} 28. b4 {[%emt 0:00:08]} cxb4 {[%emt 0:00:00]} 29. Rxb4 {[%emt 0:00:02]} Rxb4 {[%emt 0:00:00]} 30. Qxb4 {[%emt 0:00:01]} Rb8 {[%emt 0:00:01]} 31. Qa3 {[%emt 0:00:01]} Ne4 {[%emt 0:00:07]} 32. c5 {[%emt 0:00:20]} dxc5 {[%emt 0:00:31]} 33. Qd3 {[%emt 0:00:03]} Ng5 {[%emt 0:00:28]} 34. Nxg5 {[%emt 0:00:02]} hxg5 {[%emt 0:00:00]} 35. Qc3 {[%emt 0:00:10]} Rb5 {[%emt 0:00:10]} 36. a6 {[%emt 0:00:03]} Qd6 {[%emt 0:00:07]} 37. Bg3 {[%emt 0:00:03]} Bf6 {[%emt 0:00:07]} 38. Qc4 {[%emt 0:00:10]} Qxa6 {[%emt 0:00:05]} 39. Qe4 {[%emt 0:00:03]} Qe6 {[%emt 0:00:10]} 40. Qa8+ {[%emt 0:00:04]} Kg7 {[%emt 0:00:01]} 41. Qxa7 {[%emt 0:00:01]} c4 {[%emt 0:00:01]} 42. Qa2 {[%emt 0:00:03]} Rc5 {[%emt 0:00:03]} 43. e4 {[%emt 0:00:04]} Rc6 {[%emt 0:00:11]} 44. f3 {[%emt 0:00:03]} Be7 {[%emt 0:00:02]} 45. Bf2 {[%emt 0:00:04]} Bc5 {[%emt 0:00:06]} 46. Bxc5 {[%emt 0:00:03]} Rxc5 {[%emt 0:00:00]} 47. Rc3 {[%emt 0:00:02]} Qd6 {[%emt 0:00:02]} 48. Qc2 {[%emt 0:00:07]} Qd4+ {[%emt 0:00:02]} 49. Kh2 {[%emt 0:00:02]} Rc6 {[%emt 0:00:03]} 50. Qc1 {[%emt 0:00:03]} Kf6 {[%emt 0:00:15]} 51. Qc2 {[%emt 0:00:02]} Rc8 {[%emt 0:00:02]} 52. Qc1 {[%emt 0:00:03]} Rc6 {[%emt 0:00:13]} 53. Qc2 {[%emt 0:00:02]} Rc8 {[%emt 0:00:03]} 54. Qc1 {[%emt 0:00:03]} g4 {[%emt 0:00:03]} 55. fxg4 {[%emt 0:00:38]} Qxe4 {[%emt 0:00:01]} 56. Rf3+ {[%emt 0:00:01]} Kg7 {[%emt 0:00:03]} 57. Qg5 {[%emt 0:00:02]} Rc6 {[%emt 0:00:13]} 58. Qd8 {[%emt 0:00:06]} c3 {[%emt 0:00:09]} 59. Qd7 {[%emt 0:00:04]} Rf6 {[%emt 0:00:04]} 60. Rxc3 {[%emt 0:00:05]} Rf2 {[%emt 0:00:07]} 61. Rg3 {[%emt 0:00:02]} Qf4 {[%emt 0:00:03]} 62. Qd3 {[%emt 0:00:04]} Ra2 {[%emt 0:00:07]} 63. Qc3 {[%emt 0:00:03]} Re2 {[%emt 0:00:04]} 64. Qd3 {[%emt 0:00:06]} Re1 {[%emt 0:00:03]} 65. Qc3 {[%emt 0:00:02]} Qf1 {[%emt 0:00:05]} 66. Rf3 {[%emt 0:00:02]} Qg1+ {[%emt 0:00:03]} 67. Kg3 {[%emt 0:00:01]} Re4 {[%emt 0:00:12]} 68. Qc7 {[%emt 0:00:19]} Qe1+ {[%emt 0:00:02]} 69. Kh2 {[%emt 0:00:02]} Rf4 {[%emt 0:00:02]} 70. Rxf4 {[%emt 0:00:01]} exf4 {[%emt 0:00:00]} 71. Qxf4 {[%emt 0:00:01]} Qe6 {[%emt 0:00:01]} 72. g5 {[%emt 0:00:04]} Qc6 {[%emt 0:00:04]} 73. Qe5+ {[%emt 0:00:03]} Kg8 {[%emt 0:00:02]} 74. Kg3 {[%emt 0:00:03]} Qb6 {[%emt 0:00:02]} 75. Qe8+ {[%emt 0:00:03]} Kg7 {[%emt 0:00:02]} 76. Qe5+ {[%emt 0:00:01]} Kg8 {[%emt 0:00:01]} 77. Qf6 {[%emt 0:00:05]} Qb3+ {[%emt 0:00:05]} 78. Kg4 {[%emt 0:00:09]} Qc4+ {[%emt 0:00:03]} 79. Qf4 {[%emt 0:00:02]} Qe2+ {[%emt 0:00:02]} 80. Kg3 {[%emt 0:00:02]} Qd3+ {[%emt 0:00:02]} 81. Kh2 {[%emt 0:00:02]} Qd8 {[%emt 0:00:03]} 82. h4 {[%emt 0:00:02]} Qd1 {[%emt 0:00:03]} 83. Qb8+ {[%emt 0:00:04]} Kg7 {[%emt 0:00:02]} 84. Qb2+ {[%emt 0:00:03]} Kg8 {[%emt 0:00:02]} 85. Qe5 {[%emt 0:00:02]} Qg4 {[%emt 0:00:04]} 86. Qg3 {[%emt 0:00:02]} Qd4 {[%emt 0:00:03]} 87. Kh3 {[%emt 0:00:04]} Qd7+ {[%emt 0:00:03]} 88. Qg4 {[%emt 0:00:02]} Qd3+ {[%emt 0:00:02]} 89. Qf3 {[%emt 0:00:01]} Qd7+ {[%emt 0:00:02]} 90. g4 {[%emt 0:00:02]} Qd8 {[%emt 0:00:09]} 91. Qe3 {[%emt 0:00:05]} Qd5 {[%emt 0:00:10]} 92. Kg3 {[%emt 0:00:20]} Qd6+ {[%emt 0:00:03]} 93. Kg2 {[%emt 0:00:04]} Qd5+ {[%emt 0:00:03]} 94. Kg3 {[%emt 0:00:07]} Qd6+ {[%emt 0:00:03]} 95. Kf2 {[%emt 0:00:01]} Qh2+ {[%emt 0:00:02]} 96. Kf3 {[%emt 0:00:04]} Qh3+ {[%emt 0:00:03]} 97. Kf4 {[%emt 0:00:04]} Qxh4 {[%emt 0:00:04]} 98. Qe8+ {[%emt 0:00:03]} Kg7 {[%emt 0:00:03]} 99. Qe5+ {[%emt 0:00:02]} Kh7 {[%emt 0:00:04]} 100. Qf6 {[%emt 0:00:05]} Qf2+ {[%emt 0:00:03]} 101. Ke5 {[%emt 0:00:05]} Qe2+ {[%emt 0:00:08]} 102. Kd6 {[%emt 0:00:09]} Kg8 {[%emt 0:00:04]} 103. Qd8+ {[%emt 0:00:02]} Kg7 {[%emt 0:00:03]} 104. Qf6+ {[%emt 0:00:03]} Kg8 {[%emt 0:00:02]} 105. Qd8+ {[%emt 0:00:02]} Kh7 {[%emt 0:00:02]} 106. Qf6 {[%emt 0:00:19]} Qe8 {[%emt 0:00:05]} 107. Qe7 {[%emt 0:00:23]} Qb8+ {[%emt 0:00:03]} 108. Kd7 {[%emt 0:00:04]} Qb7+ {[%emt 0:00:01]} 109. Ke8 {[%emt 0:00:13]} Qxe7+ {[%emt 0:00:11]} 110. Kxe7 {[%emt 0:00:01]} Kg7 {[%emt 0:00:01]} 111. Kd6 {[%emt 0:00:04]} 1/2-1/2